[Event "RUS-chT Higher League 2021"]
[Site "Sochi"]
[Date "2021.05.05"]
[Round "5.1"]
[White "Sveshnikov, Evgeny"]
[Black "Kezin, Roman"]
[Result "1/2-1/2"]
[ECO "B40"]
[WhiteElo "2478"]
[BlackElo "2472"]
[Annotator "ChessBase"]
[PlyCount "92"]
[EventDate "2021.05.01"]
[EventType "team-tourn"]
[EventCountry "RUS"]
[SourceTitle "playchess.com"]
[Source "ChessBase"]
[SourceQuality "1"]
[TimeControl "40/5400+30:1800+30"]

1. e4 {[%emt 0:00:00]} c5 {[%emt 0:00:00]} 2. Nf3 {[%emt 0:00:00]} e6 {[%emt 0:00:00]} 3. b3 {[%emt 0:00:02]} b6 {[%emt 0:01:03]} 4. Bb2 {[%emt 0:00:51]} Bb7 {[%emt 0:00:17]} 5. Nc3 {[%emt 0:00:12]} Nc6 {[%emt 0:02:55]} 6. Qe2 {[%emt 0:01:10]} Be7 {[%emt 0:24:17]} 7. O-O-O {[%emt 0:04:11]} e5 {[%emt 0:06:18]} 8. Nd5 {[%emt 0:03:29]} d6 {[%emt 0:00:50]} 9. g4 {[%emt 0:12:28]} Nf6 {[%emt 0:04:48]} 10. Nxf6+ {[%emt 0:05:27]} Bxf6 {[%emt 0:01:13]} 11. h4 {[%emt 0:01:30]} h6 {[%emt 0:36:00]} 12. Qe3 {[%emt 0:08:18]} Nd4 {[%emt 0:04:59]} 13. Bc4 {[%emt 0:04:11]} b5 {[%emt 0:03:43]} 14. Be2 {[%emt 0:18:04]} Qb6 {[%emt 0:06:51]} 15. g5 {[%emt 0:00:55]} Be7 {[%emt 0:00:06]} 16. gxh6 {[%emt 0:03:34]} Rxh6 {[%emt 0:00:15]} 17. Rdg1 {[%emt 0:00:48]} Bf6 {[%emt 0:02:14]} 18. Ng5 {[%emt 0:01:57]} a5 {[%emt 0:01:20]} 19. Bxd4 {[%emt 0:07:00]} exd4 {[%emt 0:00:46]} 20. Qd3 {[%emt 0:00:58]} Ba6 {[%emt 0:01:03]} 21. Qg3 {[%emt 0:05:53]} c4 {[%emt 0:00:38]} 22. d3 {[%emt 0:00:28]} Qc5 {[%emt 0:00:44]} 23. dxc4 {[%emt 0:02:31]} bxc4 {[%emt 0:00:11]} 24. Bxc4 {[%emt 0:01:07]} Bxc4 {[%emt 0:00:01]} 25. bxc4 {[%emt 0:00:08]} Rb8 {[%emt 0:00:21]} 26. Qd3 {[%emt 0:02:39]} Rxh4 {[%emt 0:00:12]} 27. Nf3 {[%emt 0:00:44]} Bg5+ {[%emt 0:01:52]} 28. Nd2 {[%emt 0:01:48]} Rxh1 {[%emt 0:00:18]} 29. Rxh1 {[%emt 0:00:05]} Ke7 {[%emt 0:00:25]} 30. Kd1 {[%emt 0:01:19]} Bxd2 {[%emt 0:00:17]} 31. Kxd2 {[%emt 0:00:27]} Rb4 {[%emt 0:00:02]} 32. e5 {[%emt 0:05:56]} dxe5 {[%emt 0:00:19]} 33. Re1 {[%emt 0:02:19]} Rb6 {[%emt 0:01:25]} 34. f4 {[%emt 0:00:51]} Re6 {[%emt 0:00:02]} 35. f5 {[%emt 0:00:14]} Rh6 {[%emt 0:00:19]} 36. Qg3 {[%emt 0:00:30]} Kd6 {[%emt 0:01:13]} 37. Kd1 {[%emt 0:01:31]} Rh7 {[%emt 0:00:14]} 38. a3 {[%emt 0:00:21]} a4 {[%emt 0:00:15]} 39. Qg5 {[%emt 0:00:39]} Kc7 {[%emt 0:00:59]} 40. f6 {[%emt 0:00:00]} gxf6 {[%emt 0:00:00]} 41. Qxf6 {[%emt 0:06:10]} Qd6 {[%emt 0:14:46]} 42. Qf5 {[%emt 0:02:58]} Rg7 {[%emt 0:04:06]} 43. Rxe5 {[%emt 0:00:57]} f6 {[%emt 0:00:34]} 44. Rc5+ {[%emt 0:10:19]} Kb6 {[%emt 0:00:06]} 45. Rb5+ {[%emt 0:00:15]} Kc7 {[%emt 0:00:07]} 46. Rc5+ {[%emt 0:03:47]} Kb6 {[%emt 0:00:03]} 1/2-1/2

[Event "RUS-chT Higher League 2021"]
[Site "Sochi"]
[Date "2021.05.05"]
[Round "5.2"]
[White "Obgolts, Erik"]
[Black "Rashkovsky, Nukhim N"]
[Result "1-0"]
[ECO "B90"]
[WhiteElo "2414"]
[BlackElo "2446"]
[Annotator "NA"]
[PlyCount "111"]
[EventDate "2021.05.01"]
[EventType "team-tourn"]
[EventCountry "RUS"]
[SourceTitle "playchess.com"]
[Source "ChessBase"]
[SourceQuality "1"]
[TimeControl "40/5400+30:1800+30"]

1. e4 {[%emt 0:00:00]} c5 {[%emt 0:00:06]} 2. Nf3 {[%emt 0:00:00]} d6 {[%emt 0:00:13]} 3. d4 {[%emt 0:00:00]} cxd4 {[%emt 0:00:08]} 4. Nxd4 {[%emt 0:00:00]} Nf6 {[%emt 0:00:09]} 5. Nc3 {[%emt 0:00:00]} a6 {[%emt 0:00:06]} 6. Be3 {[%emt 0:00:01]} e5 {[%emt 0:01:38]} 7. Nf3 {[%emt 0:00:11]} Be7 {[%emt 0:00:19]} 8. Bc4 {[%emt 0:00:06]} Be6 {[%emt 0:00:18]} 9. Bb3 {[%emt 0:03:16]} Nbd7 {[%emt 0:00:33]} 10. O-O {[%emt 0:01:10]} Rc8 {[%emt 0:00:28]} 11. Nh4 {[%emt 0:07:45]} O-O {[%emt 0:04:36]} 12. Nf5 {[%emt 0:00:31]} Nc5 {[%emt 0:10:53]} 13. Qf3 {[%emt 0:08:08]} Bxf5 {[%emt 0:01:14]} 14. Qxf5 {[%emt 0:02:14]} Nxb3 {[%emt 0:00:56]} 15. cxb3 {[%emt 0:06:43]} Rc6 {[%emt 0:06:23]} 16. Rfd1 {[%emt 0:04:52]} Qc8 {[%emt 0:08:34]} 17. Qf3 {[%emt 0:03:54]} Bd8 {[%emt 0:00:37]} 18. Rd3 {[%emt 0:10:07]} Qg4 {[%emt 0:19:57]} 19. Rad1 {[%emt 0:03:54]} Qxf3 {[%emt 0:00:06]} 20. gxf3 {[%emt 0:00:04]} Ne8 {[%emt 0:00:06]} 21. f4 {[%emt 0:02:38]} f6 {[%emt 0:03:43]} 22. b4 {[%emt 0:03:34]} Rc4 {[%emt 0:03:51]} 23. b3 {[%emt 0:07:23]} Rc8 {[%emt 0:04:41]} 24. f5 {[%emt 0:05:56]} g6 {[%emt 0:00:22]} 25. b5 {[%emt 0:01:31]} Kf7 {[%emt 0:01:06]} 26. b6 {[%emt 0:03:21]} Rg8 {[%emt 0:05:12]} 27. Kf1 {[%emt 0:00:30]} Be7 {[%emt 0:00:26]} 28. Bh6 {[%emt 0:12:24]} gxf5 {[%emt 0:18:02]} 29. exf5 {[%emt 0:00:07]} Rg4 {[%emt 0:00:05]} 30. Rh3 {[%emt 0:00:12]} Bd8 {[%emt 0:01:40]} 31. Nd5 {[%emt 0:00:30]} Ng7 {[%emt 0:06:17]} 32. Bxg7 {[%emt 0:07:36]} Rxg7 {[%emt 0:00:02]} 33. b4 {[%emt 0:01:39]} Ke8 {[%emt 0:00:47]} 34. a4 {[%emt 0:00:27]} Kd7 {[%emt 0:00:16]} 35. Rhd3 {[%emt 0:00:54]} Rc6 {[%emt 0:01:16]} 36. a5 {[%emt 0:00:48]} Rg4 {[%emt 0:00:38]} 37. Rh3 {[%emt 0:00:28]} Rg7 {[%emt 0:00:09]} 38. Rh4 {[%emt 0:03:13]} Rc2 {[%emt 0:00:36]} 39. Rh6 {[%emt 0:00:57]} Rf7 {[%emt 0:00:20]} 40. Rd3 {[%emt 0:00:00]} Kc6 {[%emt 0:00:00]} 41. Rh4 {[%emt 0:01:55]} Rg7 {[%emt 0:05:02]} 42. Ne3 {[%emt 0:04:06]} Ra2 {[%emt 0:05:30]} 43. Rc4+ {[%emt 0:00:44]} Kd7 {[%emt 0:00:02]} 44. Rd1 {[%emt 0:02:13]} Rg5 {[%emt 0:04:03]} 45. h4 {[%emt 0:00:28]} Rg8 {[%emt 0:00:23]} 46. Nd5 {[%emt 0:01:19]} h5 {[%emt 0:00:41]} 47. Rc7+ {[%emt 0:02:05]} Bxc7 {[%emt 0:02:40]} 48. Nxf6+ {[%emt 0:00:54]} Kc8 {[%emt 0:00:43]} 49. Nxg8 {[%emt 0:00:13]} Bd8 {[%emt 0:00:06]} 50. f6 {[%emt 0:00:19]} Kd7 {[%emt 0:00:11]} 51. f7 {[%emt 0:00:25]} Be7 {[%emt 0:00:02]} 52. Rc1 {[%emt 0:00:11]} Bf8 {[%emt 0:00:45]} 53. Nf6+ {[%emt 0:05:02]} Ke6 {[%emt 0:01:33]} 54. Nh7 {[%emt 0:00:04]} Kxf7 {[%emt 0:00:05]} 55. Nxf8 {[%emt 0:00:07]} Kxf8 {[%emt 0:00:04]} 56. Rc7 {[%emt 0:00:04]} 1-0

[Event "RUS-chT Higher League 2021"]
[Site "Sochi"]
[Date "2021.05.05"]
[Round "5.3"]
[White "Kalegin, Evgenij"]
[Black "Ovod, Evgenija"]
[Result "1/2-1/2"]
[ECO "C65"]
[WhiteElo "2414"]
[BlackElo "2341"]
[Annotator "NA"]
[PlyCount "120"]
[EventDate "2021.05.01"]
[EventType "team-tourn"]
[EventCountry "RUS"]
[SourceTitle "playchess.com"]
[Source "ChessBase"]
[SourceQuality "1"]
[TimeControl "40/5400+30:1800+30"]

1. e4 {[%emt 0:00:00]} e5 {[%emt 0:00:00]} 2. Nf3 {[%emt 0:00:00]} Nc6 {[%emt 0:00:00]} 3. Bb5 {[%emt 0:00:00]} Nf6 {[%emt 0:00:00]} 4. Qe2 {[%emt 0:00:11]} Bc5 {[%emt 0:00:00]} 5. c3 {[%emt 0:00:11]} O-O {[%emt 0:00:05]} 6. d3 {[%emt 0:00:24]} Re8 {[%emt 0:00:47]} 7. Bg5 {[%emt 0:00:38]} Bf8 {[%emt 0:12:08]} 8. Nbd2 {[%emt 0:02:12]} d6 {[%emt 0:00:50]} 9. Nf1 {[%emt 0:01:31]} Bd7 {[%emt 0:02:31]} 10. Ne3 {[%emt 0:10:05]} Ne7 {[%emt 0:10:48]} 11. Bc4 {[%emt 0:06:13]} Ng6 {[%emt 0:00:13]} 12. Nd5 {[%emt 0:03:15]} Be7 {[%emt 0:00:12]} 13. h4 {[%emt 0:08:05]} Nxd5 {[%emt 0:02:55]} 14. Bxd5 {[%emt 0:00:21]} c6 {[%emt 0:01:21]} 15. Bb3 {[%emt 0:00:26]} h6 {[%emt 0:14:21]} 16. h5 {[%emt 0:03:41]} Nf8 {[%emt 0:00:08]} 17. Be3 {[%emt 0:05:24]} Be6 {[%emt 0:06:01]} 18. Bxe6 {[%emt 0:03:09]} Nxe6 {[%emt 0:01:27]} 19. g3 {[%emt 0:00:12]} Qc7 {[%emt 0:13:04]} 20. Nh4 {[%emt 0:01:09]} Bxh4 {[%emt 0:03:33]} 21. Rxh4 {[%emt 0:00:08]} d5 {[%emt 0:00:11]} 22. O-O-O {[%emt 0:18:19]} Rad8 {[%emt 0:01:58]} 23. f4 {[%emt 0:04:02]} d4 24. f5 {[%emt 0:00:42]} dxe3 {[%emt 0:16:10]} 25. fxe6 {[%emt 0:00:06]} Rxe6 {[%emt 0:00:04]} 26. Qxe3 {[%emt 0:00:10]} c5 {[%emt 0:00:15]} 27. Rh2 {[%emt 0:02:03]} b5 {[%emt 0:02:53]} 28. Rc2 {[%emt 0:01:43]} Rc6 {[%emt 0:00:37]} 29. Kb1 {[%emt 0:00:50]} a5 {[%emt 0:03:16]} 30. g4 {[%emt 0:01:15]} f6 {[%emt 0:00:17]} 31. Rcd2 {[%emt 0:02:21]} a4 {[%emt 0:01:23]} 32. Rc1 {[%emt 0:02:07]} a3 {[%emt 0:02:19]} 33. bxa3 {[%emt 0:01:53]} Qa5 {[%emt 0:01:29]} 34. Rb2 {[%emt 0:04:22]} c4 {[%emt 0:05:05]} 35. d4 {[%emt 0:00:54]} exd4 {[%emt 0:00:28]} 36. cxd4 {[%emt 0:00:05]} c3 {[%emt 0:00:16]} 37. Rb3 {[%emt 0:02:07]} Rdc8 {[%emt 0:00:04]} 38. Rc2 {[%emt 0:02:40]} Rc4 {[%emt 0:00:04]} 39. e5 {[%emt 0:01:46]} fxe5 40. Qxe5 {[%emt 0:00:00]} Qa7 {[%emt 0:00:00]} 41. Rxb5 {[%emt 0:08:39]} Qxd4 {[%emt 0:13:15]} 42. Qxd4 {[%emt 0:00:19]} Rxd4 {[%emt 0:00:02]} 43. Rb4 {[%emt 0:01:02]} Rcc4 {[%emt 0:00:08]} 44. Rxc3 {[%emt 0:07:55]} Rxb4+ {[%emt 0:00:08]} 45. axb4 {[%emt 0:00:04]} Rxb4+ {[%emt 0:00:03]} 46. Kc2 {[%emt 0:00:20]} Rxg4 {[%emt 0:00:12]} 47. Kb3 {[%emt 0:00:28]} Rg5 {[%emt 0:05:36]} 48. Rh3 {[%emt 0:01:00]} Kf7 {[%emt 0:02:40]} 49. a4 {[%emt 0:00:16]} Ke6 {[%emt 0:00:30]} 50. Kb4 {[%emt 0:01:52]} Kd7 {[%emt 0:00:45]} 51. a5 {[%emt 0:00:33]} Kc6 {[%emt 0:01:07]} 52. Rc3+ {[%emt 0:00:45]} Kb7 {[%emt 0:00:10]} 53. Rc5 {[%emt 0:00:31]} Ka6 {[%emt 0:04:47]} 54. Kc4 {[%emt 0:05:05]} Rxc5+ {[%emt 0:00:35]} 55. Kxc5 {[%emt 0:00:04]} Kxa5 {[%emt 0:00:04]} 56. Kd5 {[%emt 0:00:08]} Kb6 {[%emt 0:00:04]} 57. Ke6 {[%emt 0:00:07]} Kc7 {[%emt 0:00:05]} 58. Kf7 {[%emt 0:00:04]} Kd7 {[%emt 0:00:04]} 59. Kxg7 {[%emt 0:00:06]} Ke7 {[%emt 0:00:06]} 60. Kxh6 {[%emt 0:00:04]} Kf7 {[%emt 0:00:20]} 1/2-1/2

[Event "RUS-chT Higher League 2021"]
[Site "Sochi"]
[Date "2021.05.05"]
[Round "5.4"]
[White "Vasilyev, Evgeny"]
[Black "Zhelnin, Vladimir V"]
[Result "1/2-1/2"]
[ECO "A10"]
[WhiteElo "2055"]
[BlackElo "2408"]
[Annotator "NA"]
[PlyCount "79"]
[EventDate "2021.05.01"]
[EventType "team-tourn"]
[EventCountry "RUS"]
[SourceTitle "playchess.com"]
[Source "ChessBase"]
[SourceQuality "1"]
[TimeControl "40/5400+30:1800+30"]

1. c4 {[%emt 0:00:00]} g6 {[%emt 0:00:11]} 2. e4 {[%emt 0:00:00]} Bg7 {[%emt 0:00:16]} 3. d4 {[%emt 0:00:02]} d6 {[%emt 0:00:19]} 4. Nc3 {[%emt 0:00:15]} e5 {[%emt 0:02:19]} 5. Nf3 {[%emt 0:00:31]} Nc6 {[%emt 0:10:06]} 6. Bg5 {[%emt 0:00:19]} f6 {[%emt 0:04:18]} 7. Be3 {[%emt 0:00:09]} Nh6 {[%emt 0:01:20]} 8. Be2 {[%emt 0:11:35]} Ng4 {[%emt 0:07:59]} 9. Bc1 {[%emt 0:00:50]} O-O {[%emt 0:14:54]} 10. O-O {[%emt 0:02:06]} f5 {[%emt 0:08:04]} 11. Bg5 {[%emt 0:07:36]} Qd7 {[%emt 0:04:51]} 12. dxe5 {[%emt 0:07:43]} Ngxe5 {[%emt 0:02:29]} 13. Nxe5 {[%emt 0:06:15]} dxe5 {[%emt 0:01:25]} 14. Qd5+ {[%emt 0:10:37]} Qf7 {[%emt 0:04:35]} 15. exf5 {[%emt 0:00:44]} Bxf5 {[%emt 0:01:08]} 16. Rad1 {[%emt 0:07:11]} Nd4 {[%emt 0:04:20]} 17. Bd3 {[%emt 0:03:14]} Ne6 {[%emt 0:03:17]} 18. Bh4 {[%emt 0:05:24]} c6 {[%emt 0:02:21]} 19. Qf3 {[%emt 0:03:18]} Nc5 {[%emt 0:02:39]} 20. Be2 {[%emt 0:02:11]} Bh6 {[%emt 0:03:43]} 21. g4 {[%emt 0:13:16]} Bc2 {[%emt 0:03:13]} 22. Qxf7+ {[%emt 0:00:17]} Rxf7 {[%emt 0:00:16]} 23. Rd6 {[%emt 0:00:29]} Bf4 {[%emt 0:00:26]} 24. b4 {[%emt 0:02:01]} g5 {[%emt 0:04:11]} 25. Bg3 {[%emt 0:00:20]} Ne4 {[%emt 0:00:32]} 26. Nxe4 {[%emt 0:01:07]} Bxe4 {[%emt 0:00:02]} 27. Rfd1 {[%emt 0:01:38]} Bxg3 {[%emt 0:06:10]} 28. hxg3 {[%emt 0:00:54]} Raf8 {[%emt 0:00:11]} 29. Rf1 {[%emt 0:01:50]} Re7 {[%emt 0:02:22]} 30. Rfd1 {[%emt 0:01:46]} Kg7 {[%emt 0:01:34]} 31. R1d2 {[%emt 0:01:11]} Bg6 {[%emt 0:01:01]} 32. Bd1 {[%emt 0:03:06]} e4 {[%emt 0:01:58]} 33. Re2 {[%emt 0:01:51]} Rf6 {[%emt 0:01:06]} 34. Rd4 {[%emt 0:00:21]} Rf3 {[%emt 0:02:28]} 35. Kg2 {[%emt 0:02:16]} Rc3 {[%emt 0:00:30]} 36. Bc2 {[%emt 0:01:37]} Bf7 {[%emt 0:00:33]} 37. Bb3 {[%emt 0:00:55]} Bg6 {[%emt 0:00:20]} 38. Bc2 {[%emt 0:01:53]} Bf7 {[%emt 0:00:37]} 39. Bb3 {[%emt 0:00:13]} Bg6 {[%emt 0:00:38]} 40. Bc2 {[%emt 0:00:00]} 1/2-1/2

[Event "RUS-chT Higher League 2021"]
[Site "Sochi"]
[Date "2021.05.05"]
[Round "5.6"]
[White "Bykov, Egor"]
[Black "Shomoev, Anton"]
[Result "0-1"]
[ECO "D85"]
[WhiteElo "2423"]
[BlackElo "2563"]
[Annotator "ChessBase"]
[PlyCount "56"]
[EventDate "2021.05.01"]
[EventType "team-tourn"]
[EventCountry "RUS"]
[SourceTitle "playchess.com"]
[Source "ChessBase"]
[SourceQuality "1"]
[TimeControl "40/5400+30:1800+30"]

1. d4 {[%emt 0:00:00]} Nf6 {[%emt 0:00:00]} 2. c4 {[%emt 0:00:00]} g6 {[%emt 0:00:00]} 3. Nc3 {[%emt 0:00:00]} d5 {[%emt 0:00:00]} 4. cxd5 {[%emt 0:00:54]} Nxd5 {[%emt 0:00:00]} 5. Bd2 {[%emt 0:00:17]} Nb6 {[%emt 0:00:00]} 6. e3 {[%emt 0:00:31]} Bg7 {[%emt 0:00:00]} 7. f4 {[%emt 0:01:27]} O-O {[%emt 0:00:07]} 8. Bb5 {[%emt 0:00:56]} Na6 {[%emt 0:00:52]} 9. Nf3 {[%emt 0:05:26]} c5 {[%emt 0:00:15]} 10. O-O {[%emt 0:09:09]} cxd4 {[%emt 0:00:40]} 11. Nxd4 {[%emt 0:00:40]} Nc7 {[%emt 0:00:06]} 12. Be2 {[%emt 0:11:05]} Bxd4 {[%emt 0:00:57]} 13. exd4 {[%emt 0:00:04]} Qxd4+ {[%emt 0:00:04]} 14. Rf2 {[%emt 0:03:23]} Bf5 {[%emt 0:01:44]} 15. Bf3 {[%emt 0:04:41]} Rad8 {[%emt 0:01:51]} 16. Qe2 {[%emt 0:03:17]} Nc4 {[%emt 0:05:53]} 17. Be1 {[%emt 0:02:42]} Ne6 {[%emt 0:02:54]} 18. Nd5 {[%emt 0:19:31]} Rxd5 {[%emt 0:02:11]} 19. Bc3 {[%emt 0:02:38]} Qd3 {[%emt 0:08:21]} 20. Bxd5 {[%emt 0:04:13]} Qxd5 {[%emt 0:00:09]} 21. Rd1 {[%emt 0:01:49]} Qe4 {[%emt 0:01:06]} 22. Qxe4 {[%emt 0:03:21]} Bxe4 {[%emt 0:00:04]} 23. Bb4 {[%emt 0:00:21]} Re8 {[%emt 0:02:34]} 24. g3 {[%emt 0:03:42]} f5 {[%emt 0:01:06]} 25. b3 {[%emt 0:00:57]} Ne3 {[%emt 0:02:52]} 26. Rd7 {[%emt 0:00:28]} Nd5 {[%emt 0:00:48]} 27. Ba3 {[%emt 0:01:50]} Nf8 {[%emt 0:06:16]} 28. Rxb7 {[%emt 0:00:35]} Nxf4 {[%emt 0:00:06]} 0-1

[Event "RUS-chT Higher League 2021"]
[Site "Sochi"]
[Date "2021.05.05"]
[Round "5.7"]
[White "Drygalov, Andrey"]
[Black "Utnasunov, Alexander"]
[Result "1-0"]
[ECO "B72"]
[WhiteElo "2500"]
[BlackElo "2442"]
[Annotator "ChessBase"]
[PlyCount "55"]
[EventDate "2021.05.01"]
[EventType "team-tourn"]
[EventCountry "RUS"]
[SourceTitle "playchess.com"]
[Source "ChessBase"]
[SourceQuality "1"]
[TimeControl "40/5400+30:1800+30"]

1. e4 {[%emt 0:00:00]} c5 {[%emt 0:00:00]} 2. Nf3 {[%emt 0:00:00]} d6 {[%emt 0:00:00]} 3. d4 {[%emt 0:00:00]} cxd4 {[%emt 0:00:00]} 4. Nxd4 {[%emt 0:00:00]} Nf6 {[%emt 0:00:00]} 5. Nc3 {[%emt 0:00:00]} g6 {[%emt 0:00:02]} 6. Be3 {[%emt 0:00:00]} a6 {[%emt 0:01:19]} 7. f3 {[%emt 0:00:00]} b5 {[%emt 0:00:29]} 8. Qd2 {[%emt 0:00:03]} Bb7 {[%emt 0:00:37]} 9. a4 {[%emt 0:00:11]} b4 {[%emt 0:00:37]} 10. Na2 {[%emt 0:00:06]} a5 {[%emt 0:06:39]} 11. c3 {[%emt 0:01:59]} bxc3 {[%emt 0:01:53]} 12. Nxc3 {[%emt 0:00:15]} Bg7 {[%emt 0:00:16]} 13. Bb5+ {[%emt 0:00:03]} Nbd7 {[%emt 0:00:16]} 14. O-O {[%emt 0:00:17]} O-O {[%emt 0:00:05]} 15. Nb3 {[%emt 0:01:19]} Qb8 {[%emt 0:25:02]} 16. Rac1 {[%emt 0:09:27]} Rc8 {[%emt 0:03:38]} 17. Rfd1 {[%emt 0:00:33]} Ne5 {[%emt 0:03:19]} 18. Qe2 {[%emt 0:13:15]} e6 {[%emt 0:05:19]} 19. Bd4 {[%emt 0:16:54]} d5 {[%emt 0:11:54]} 20. f4 {[%emt 0:06:20]} Nc6 {[%emt 0:00:52]} 21. Bxf6 {[%emt 0:00:58]} Bxf6 {[%emt 0:01:51]} 22. exd5 {[%emt 0:00:22]} Ne7 {[%emt 0:06:32]} 23. dxe6 {[%emt 0:01:26]} Qxf4 {[%emt 0:05:16]} 24. exf7+ {[%emt 0:00:23]} Kf8 {[%emt 0:01:32]} 25. Rd7 {[%emt 0:09:02]} Rab8 {[%emt 0:11:23]} 26. Rf1 {[%emt 0:00:55]} Qg5 {[%emt 0:00:16]} 27. Rxb7 {[%emt 0:07:51]} Rxb7 {[%emt 0:05:44]} 28. Ne4 {[%emt 0:00:09]} 1-0

[Event "RUS-chT Higher League 2021"]
[Site "Sochi"]
[Date "2021.05.05"]
[Round "5.9"]
[White "Geivondian, Arman"]
[Black "Khegay, Dmitriy"]
[Result "0-1"]
[ECO "A46"]
[WhiteElo "2378"]
[BlackElo "2523"]
[Annotator "ChessBase"]
[PlyCount "152"]
[EventDate "2021.05.01"]
[EventType "team-tourn"]
[EventCountry "RUS"]
[SourceTitle "playchess.com"]
[Source "ChessBase"]
[SourceQuality "1"]
[TimeControl "40/5400+30:1800+30"]

1. d4 {[%emt 0:00:00]} Nf6 {[%emt 0:00:00]} 2. Nf3 {[%emt 0:00:03]} d5 {[%emt 0:00:09]} 3. c4 {[%emt 0:00:13]} e6 {[%emt 0:00:05]} 4. cxd5 {[%emt 0:00:24]} exd5 {[%emt 0:00:08]} 5. Qc2 {[%emt 0:00:07]} Nbd7 {[%emt 0:02:26]} 6. Bg5 {[%emt 0:02:23]} Bb4+ {[%emt 0:00:47]} 7. Nbd2 {[%emt 0:01:23]} c5 {[%emt 0:10:42]} 8. a3 {[%emt 0:21:41]} Bxd2+ {[%emt 0:00:04]} 9. Qxd2 {[%emt 0:00:16]} O-O {[%emt 0:00:36]} 10. Bxf6 {[%emt 0:01:55]} Qxf6 {[%emt 0:00:12]} 11. e3 {[%emt 0:10:16]} c4 {[%emt 0:01:35]} 12. Be2 {[%emt 0:06:12]} Qb6 {[%emt 0:06:02]} 13. O-O {[%emt 0:08:11]} Nf6 {[%emt 0:01:15]} 14. Ne5 {[%emt 0:10:45]} Ne4 {[%emt 0:02:32]} 15. Qc2 {[%emt 0:01:58]} Nd6 {[%emt 0:01:21]} 16. Bg4 {[%emt 0:04:06]} Bxg4 {[%emt 0:05:38]} 17. Nxg4 {[%emt 0:00:02]} f6 {[%emt 0:00:11]} 18. f3 {[%emt 0:00:45]} Rfe8 {[%emt 0:01:20]} 19. Rfe1 {[%emt 0:00:17]} Re7 {[%emt 0:02:37]} 20. Re2 {[%emt 0:00:30]} Rae8 {[%emt 0:00:05]} 21. Rae1 {[%emt 0:00:08]} Qb3 {[%emt 0:03:12]} 22. Qd2 {[%emt 0:04:25]} Nb5 {[%emt 0:02:38]} 23. e4 {[%emt 0:06:17]} Qd3 {[%emt 0:00:25]} 24. Nf2 {[%emt 0:00:37]} Qxd2 {[%emt 0:03:08]} 25. Rxd2 {[%emt 0:00:05]} dxe4 {[%emt 0:00:48]} 26. fxe4 {[%emt 0:05:42]} c3 {[%emt 0:02:10]} 27. bxc3 {[%emt 0:07:51]} Nxc3 {[%emt 0:00:03]} 28. Rb2 {[%emt 0:06:13]} b6 {[%emt 0:00:16]} 29. Rc2 {[%emt 0:00:42]} Nb5 {[%emt 0:02:16]} 30. a4 {[%emt 0:00:42]} Nxd4 {[%emt 0:00:06]} 31. Rc4 {[%emt 0:00:08]} Nb3 {[%emt 0:02:08]} 32. h3 {[%emt 0:00:46]} f5 {[%emt 0:01:13]} 33. Rb4 {[%emt 0:00:46]} Nc5 {[%emt 0:00:40]} 34. a5 {[%emt 0:00:06]} fxe4 {[%emt 0:01:48]} 35. Re3 {[%emt 0:01:03]} Re6 {[%emt 0:01:54]} 36. axb6 {[%emt 0:00:11]} axb6 {[%emt 0:00:13]} 37. Nd1 {[%emt 0:00:43]} Ra8 {[%emt 0:01:56]} 38. Nb2 {[%emt 0:00:32]} Ra1+ {[%emt 0:01:00]} 39. Kh2 {[%emt 0:00:07]} Rb1 {[%emt 0:00:09]} 40. Re2 {[%emt 0:00:00]} e3 {[%emt 0:00:00]} 41. Nd3 {[%emt 0:03:06]} Rxb4 {[%emt 0:21:00]} 42. Nxb4 {[%emt 0:00:08]} Nb3 {[%emt 0:00:20]} 43. Nc2 {[%emt 0:09:00]} Nd2 {[%emt 0:02:51]} 44. Kg3 {[%emt 0:01:38]} Nc4 {[%emt 0:00:42]} 45. Kf4 {[%emt 0:00:57]} Rd6 {[%emt 0:08:38]} 46. Ke4 {[%emt 0:01:50]} Rd2 {[%emt 0:00:08]} 47. Nd4 {[%emt 0:00:03]} Kf7 {[%emt 0:03:55]} 48. Re1 {[%emt 0:06:57]} Nd6+ {[%emt 0:02:52]} 49. Kxe3 {[%emt 0:01:24]} Rxg2 {[%emt 0:00:10]} 50. Rf1+ {[%emt 0:02:15]} Ke7 {[%emt 0:01:06]} 51. Kf4 {[%emt 0:00:02]} Ra2 {[%emt 0:02:49]} 52. Re1+ {[%emt 0:00:16]} Kd7 {[%emt 0:01:31]} 53. Rg1 {[%emt 0:03:33]} g6 {[%emt 0:02:00]} 54. Ke5 {[%emt 0:03:55]} Ra5+ {[%emt 0:00:50]} 55. Kf6 {[%emt 0:00:15]} Rd5 {[%emt 0:03:22]} 56. Ne2 {[%emt 0:01:06]} Rh5 {[%emt 0:04:26]} 57. Rb1 {[%emt 0:00:59]} b5 {[%emt 0:00:07]} 58. Nd4 {[%emt 0:00:41]} Rxh3 {[%emt 0:08:51]} 59. Nxb5 {[%emt 0:00:05]} Nxb5 {[%emt 0:08:39]} 60. Rxb5 {[%emt 0:00:05]} Kc6 {[%emt 0:00:05]} 61. Ra5 {[%emt 0:00:43]} Rg3 {[%emt 0:00:15]} 62. Ra6+ {[%emt 0:02:43]} Kb5 {[%emt 0:00:21]} 63. Ra1 {[%emt 0:00:44]} h5 {[%emt 0:00:08]} 64. Rc1 {[%emt 0:00:26]} h4 {[%emt 0:00:43]} 65. Ke5 {[%emt 0:00:15]} g5 {[%emt 0:00:11]} 66. Kd5 {[%emt 0:00:37]} Kb4 {[%emt 0:00:37]} 67. Kd4 {[%emt 0:00:03]} h3 {[%emt 0:00:33]} 68. Rb1+ {[%emt 0:00:23]} Ka3 {[%emt 0:00:12]} 69. Rb8 {[%emt 0:00:04]} g4 {[%emt 0:01:37]} 70. Rh8 {[%emt 0:00:04]} Kb3 {[%emt 0:00:23]} 71. Rb8+ {[%emt 0:00:09]} Kc2 {[%emt 0:00:09]} 72. Rc8+ {[%emt 0:00:03]} Kd1 {[%emt 0:00:26]} 73. Ra8 {[%emt 0:00:04]} Ke2 {[%emt 0:00:43]} 74. Ke4 {[%emt 0:00:18]} Rf3 {[%emt 0:00:48]} 75. Rh8 {[%emt 0:00:42]} Kf2 {[%emt 0:00:07]} 76. Rh4 {[%emt 0:00:04]} Kg3 {[%emt 0:00:09]} 0-1